Cogmind - Beta 14 @@@ ROGUE MODE // 2025.03.17 @ 22:14:29 Player: Rudrot Result: Destroyed by K3-XCC(R) with Subdweller Laser Performance ------------- Evolutions (0) 0 Regions Visited (2) 400 Robots Destroyed (18) 90 Value Destroyed (515) 515 Prototype IDs (2) 40 Alien Tech Used (0) 0 Bonus (0) 0 TOTAL SCORE: 1045 Bonus ------- None Cogmind --------- Core Integrity 0/250 Matter 290/300 Energy 233/250 System Corruption 0% Temperature Cool (6) Movement Walking (120) Location -10/Subcaves Parts ------- > --- POWER (1) -------- Ion Engine > --- PROPULSION (2) --- Aluminum Leg Aluminum Leg > --- UTILITY (2) ------ Heat Sink Medium Storage Unit > --- WEAPON (2) ------- Medium Laser Datajack > --- INVENTORY (10) --- Ion Engine Sensor Array Propulsion Shielding Utility Shielding Weapon Shielding Weapon Shielding Weapon Shielding Small Laser Subdweller Laser Grenade Launcher Peak State ------------ > --- POWER ------------ Ion Engine > --- PROPULSION ------- Aluminum Leg Aluminum Leg > --- UTILITY ---------- Heat Sink Medium Storage Unit > --- WEAPON ----------- Small Laser Subdweller Laser > --- INVENTORY -------- Ion Engine Sensor Array Propulsion Shielding Utility Shielding Weapon Shielding Weapon Shielding Weapon Shielding Medium Laser Grenade Launcher Datajack [Rating: 9] Favorites ----------- Power Ion Engine Engine Ion Engine Propulsion Aluminum Leg Leg Aluminum Leg Wheel Compact Wheel Utility Medium Storage Unit Device Heat Sink Storage Medium Storage Unit Protection Light Armor Plating Weapon Medium Laser Energy Gun Medium Laser Energy Cannon Beam Cannon Ballistic Gun Light Assault Rifle Launcher Grenade Launcher Special Melee Weapon Datajack Build | -11 -10 -10 ------- Run | Yrd Mat Sub Slots Evolved . | . . . Power . | . . . Propulsion . | . . . Utility . | . . . Weapon . | . . . Parts Attached 32 | 6 22 4 Power 4 | 1 3 . Engine 4 | 1 3 . Core . | . . . Reactor . | . . . Propulsion 9 | 2 7 . Treads . | . . . Leg 7 | . 7 . Wheel 2 | 2 . . Hover . | . . . Flight . | . . . Utility 5 | 1 3 1 Device 1 | . . 1 Storage 2 | 1 1 . Processor . | . . . Hackware . | . . . Protection 2 | . 2 . Artifact . | . . . Weapon 14 | 2 9 3 Energy Gun 7 | 1 4 2 Energy Cannon 1 | . 1 . Ballistic Gun 3 | 1 2 . Ballistic Cannon . | . . . Launcher 2 | . 2 . Special Weapon . | . . . Impact Weapon . | . . . Slashing Weapon . | . . . Piercing Weapon . | . . . Special Melee Weapon 1 | . . 1 Unidentified Prototypes . | . . . Parts Lost 8 | . 8 . Power 2 | . 2 . Propulsion 3 | . 3 . Utility 1 | . 1 . Weapon 2 | . 2 . Highest Loss Streak 4 | . 4 . To Critical Strikes . | . . . Average Slot Usage (%) 92 | . 91 100 Engine 10 | . 10 14 Leg 25 | . 25 28 Wheel 1 | . 1 . Device 1 | . . 10 Storage 14 | . 14 14 Protection 10 | . 11 4 Energy Gun 16 | . 14 28 Energy Cannon 4 | . 5 . Ballistic Gun 5 | . 6 . Launcher 1 | . 1 . Peak Build Rating 9 | 6 8 9 Average Rating 6 | 3 6 8 On Entrance 4 | . 6 8 Naked Turns . | . . . Heaviest Build 24 | 10 24 21 Greatest Support 32 | 32 32 20 Greatest Overweight (x) 3 | . 3 1 Average Overweight (x) . | . . . Largest Inventory Capacity 10 | 8 10 10 Average Capacity 9 | 5 9 10 Most Carried 10 | . 10 10 Average Carried 5 | . 5 9 Final Capacity 10 | 8 10 10 Final Carried 10 | . 10 10 Class Distribution -------------------- 100% | Mutant Dominant Class ---------------- Mutant | -10/Materials Mutant | -10/Subcaves Resources | -11 -10 -10 ----------- Run | Yrd Mat Sub Matter Collected 541 | 165 346 30 Remotely . | . . . Salvage Created 578 | . 526 52 Parts 25 | . 24 1 Haulers Intercepted 1 | . 1 . Recyclers Shooed . | . . . Parts Field Recycled . | . . . Retrieved Matter . | . . . Parts Self-Destructed . | . . . Prevented . | . . . Kills | -11 -10 -10 ------- Run | Yrd Mat Sub Combat Hostiles Destroyed 15 | . 14 1 Guns 10 | . 9 1 Cannons 3 | . 3 . AOE 2 | . 2 . Classes Destroyed 6 | . 5 1 Tunneler 1 | . 1 . Hauler 1 | . 1 . Watcher 1 | . 1 . Swarmer 3 | . 3 . Grunt 11 | . 11 . Subdweller 1 | . . 1 Best Kill Streak 4 | . 4 1 Combat Bots Only 2 | . 2 1 Max Kills in Single Turn 1 | . 1 1 Gunslinging . | . . . Exploded 1 | . 1 . Melee . | . . . Uniques/NPCs Destroyed . | . . . Combat | -11 -10 -10 -------- Run | Yrd Mat Sub Hostile Shots Fired 156 | . 148 8 Missed 46 | . 43 3 Damage Taken 1236 | . 1140 96 Core 265 | . 228 37 Absorbed by Shields . | . . . Regen/Repaired (Parts) 46 | . 46 . Core Remaining (%) 100 | 100 . . Volleys Fired 81 | . 74 7 Largest 2 | . 2 2 Hottest 110 | . 110 100 Shots Fired 152 | . 138 14 Gun 121 | . 107 14 Cannon 26 | . 26 . Launcher 5 | . 5 . Special . | . . . Kinetic 22 | . 22 . Thermal 125 | . 111 14 Explosive 5 | . 5 . Electromagnetic . | . . . Robot Hit Streak 11 | . 11 6 Robot Miss Streak 4 | . 4 1 Penetration Max . | . . . Secondary Targets . | . . . Shots Hit Robots 96 | . 83 13 Core Hits 35 | . 32 3 Critical Kills . | . . . Critical Parts Destroyed . | . . . Critical Strikes 5 | . 5 . Burn 5 | . 5 . Melee Attacks 1 | . . 1 Impact . | . . . Slashing . | . . . Piercing . | . . . Sneak Attacks . | . . . Combat Hostiles . | . . . Follow-up Attacks . | . . . Damage Inflicted 1327 | . 1193 134 Guns 955 | . 821 134 Cannons 212 | . 212 . Explosions 157 | . 157 . Melee . | . . . Ramming 3 | . 3 . Kinetic 124 | . 124 . Thermal 1043 | . 909 134 Explosive 121 | . 121 . Electromagnetic 36 | . 36 . Impact . | . . . Slashing . | . . . Piercing . | . . . Highest Corruption . | . . . Average Corruption . | . . . Corruption Purged . | . . . Corruption Blocked . | . . . Overload Shots . | . . . Overflow Damage . | . . . Projectiles . | . . . Explosions . | . . . Melee . | . . . Knockbacks . | . . . Impact . | . . . Kinetic . | . . . Secondary . | . . . Self-Inflicted Damage . | . . . Shots . | . . . Rammed . | . . . Targets Rammed 2 | . 2 . Kicked 2 | . 2 . Crushed . | . . . Highest Temperature 421 | . 421 . Average Temperature 120 | . 120 . Received Heat Transfer 567 | . 537 30 Effects 4 | . 4 . Shutdowns 1 | . 1 . Energy Bleed 1 | . 1 . Interference 1 | . 1 . Short Circuit 1 | . 1 . Siege Activations . | . . . Robots Corrupted . | . . . Combat Hostiles . | . . . Parts Fried . | . . . Impact Corruptions . | . . . Robots Melted 1 | . 1 . Combat Hostiles . | . . . Parts Melted 5 | . 4 1 Heat Transferred 3077 | . 2791 286 Parts Sabotaged . | . . . Parts Stolen . | . . . Parts Stripped . | . . . Power Chain Reactions . | . . . Alert | -11 -10 -10 ------- Run | Yrd Mat Sub Peak Influence 191 | . 191 . Initial . | . . . Average 94 | . 98 . Maximum Alert Level . | . . . Low Security (%) 100 | 100 100 . Level 1 . | . . . Level 2 . | . . . Level 3 . | . . . Level 4 . | . . . Level 5 . | . . . High Security . | . . . Max Security . | . . . Squads Dispatched 2 | . 2 . Investigation . | . . . Extermination . | . . . Reinforcement 2 | . 2 . Assault . | . . . Garrison . | . . . Intercept . | . . . Searches Triggered . | . . . Construction Impeded . | . . . Haulers Reinforced . | . . . Active Scanning Responses . | . . . Cargo Convoy Interrupts . | . . . Stealth | -11 -10 -10 --------- Run | Yrd Mat Sub Distress Signals 1 | . 1 . Communications Jammed . | . . . Distress Signals . | . . . Times Spotted 31 | . 29 2 Peak Tracking Total 6 | . 6 1 Tactical Retreats 3 | . 3 . Traps | -11 -10 -10 ------- Run | Yrd Mat Sub Traps Triggered . | . . . Indirectly . | . . . Trap Hack Attempts . | . . . Triggered . | . . . Disarmed . | . . . Reprogrammed . | . . . Reused . | . . . Traps Extracted . | . . . Installed . | . . . Triggered . | . . . Machines | -11 -10 -10 ---------- Run | Yrd Mat Sub Machines Disabled 2 | . 2 . Max in Single Turn 1 | . 1 . Machines Repaired . | . . . Machines Dismantled . | . . . Machines Sabotaged . | . . . Overloaded Fab Kills . | . . . Hacking | -11 -10 -10 --------- Run | Yrd Mat Sub Machines Accessed 7 | . 7 . Terminals 6 | . 6 . Fabricators . | . . . Repair Stations 1 | . 1 . Recycling Units . | . . . Scanalyzers . | . . . Garrison Access . | . . . Total Hacks 19 | . 19 . Successful 10 | . 10 . Failed 9 | . 9 . Catastrophic 1 | . 1 . Database Lockouts . | . . . Manual . | . . . Terminals 15 | . 15 . Fabricators . | . . . Repair Stations 4 | . 4 . Recycling Units . | . . . Scanalyzers . | . . . Garrison Access . | . . . Terminal Hacks 8 | . 8 . Record 1 | . 1 . Prototype ID Bank 1 | . 1 . Emergency Access Points 1 | . 1 . Alert Level 2 | . 2 . Locate Traps 1 | . 1 . Dispatch Records 1 | . 1 . Hauler Manifests 1 | . 1 . Fabricator Hacks . | . . . Repair Station Hacks 2 | . 2 . Scan Component 1 | . 1 . Repair 1 | . 1 . Recycling Unit Hacks . | . . . Scanalyzer . | . . . Garrison Access Hacks . | . . . Unauthorized Hacks . | . . . Terminals . | . . . Fabricators . | . . . Repair Stations . | . . . Recycling Units . | . . . Scanalyzers . | . . . Garrison Access . | . . . Data Cores Recovered . | . . . Used . | . . . Hacking Detections 6 | . 6 . Full Trace Events . | . . . Feedback Events . | . . . Feedback Blocked . | . . . Robot Schematics Acquired . | . . . Robots Built . | . . . Authchips . | . . . Time . | . . . Total Robot Build Rating . | . . . Part Schematics Acquired . | . . . Parts Built . | . . . Authchips . | . . . Time . | . . . Total Part Build Rating . | . . . Parts Repaired 1 | . 1 . Time 26 | . 26 . Parts Recycled . | . . . Recycled Matter . | . . . Retrieved Matter . | . . . Retrieved Components . | . . . Parts Scanalyzed . | . . . Part Schematics Acquired . | . . . Parts Damaged . | . . . Bothacking | -11 -10 -10 ------------ Run | Yrd Mat Sub Used RIF Installer . | . . . Robots Hacked 1 | . . 1 Non-combat . | . . . Combat 1 | . . 1 Robot Hacks Applied 1 | . . 1 parse_system 1 | . . 1 Relay Couplers Released . | . . . Fabnet Peak Effective % . | . . . Robots Rewired . | . . . Allies Hacked . | . . . Hacks Repelled . | . . . Allies | -11 -10 -10 -------- Run | Yrd Mat Sub Total Allies . | . . . Largest Group . | . . . Highest-Rated Group . | . . . Highest-Rated Ally . | . . . Total Orders . | . . . Ally Attacks . | . . . Total Damage . | . . . Kills . | . . . Allies Corrupted . | . . . Allies Melted . | . . . Intel | -11 -10 -10 ------- Run | Yrd Mat Sub Robot Analysis Total . | . . . Derelict Logs Recovered . | . . . Drone Launches . | . . . Drone Recoveries . | . . . Exploration | -11 -10 -10 ------------- Run | Yrd Mat Sub Turns Passed 2477 | 97 2097 283 Spaces Moved 1513 | 112 1219 182 Core 58 | 46 12 . Treads . | . . . Legs 1318 | . 1136 182 Wheels 137 | 66 71 . Hover . | . . . Flight . | . . . Fastest Speed 50 | 50 100 120 Average Speed 136 | 79 141 140 Slowest Speed 260 | 100 260 190 Overloaded Moves . | . . . Propulsion Burnouts . | . . . Robots Hopped . | . . . Cave-ins Triggered . | . . . Exploration Rate (%) 36 | 5 95 10 Regions Visited 2 Branch Regions 1 Pre-discovered Areas . | . . . Known Exits Taken . | . . . Unknown Exits Taken 2 | 1 1 . Scrap Searched 5 | . . 5 Spaces Dug . | . . . Terrain Destroyed 20 | . 20 . Melee . | . . . Projectile . | . . . AOE 20 | . 20 . Terrain Rammed . | . . . Walls Destroyed . | . . . Machines Disabled . | . . . Actions | -11 -10 -10 --------- Run | Yrd Mat Sub Total 1766 | 117 1454 195 Wait 114 | . 114 . Move 1511 | 111 1218 182 Hop . | . . . Pick Up 15 | . 15 . Fast Attach 14 | 6 8 . Attach 3 | . 2 1 Detach . | . . . Swap 15 | . 12 3 Drop 10 | . 9 1 Fire 81 | . 74 7 Melee 1 | . . 1 Ram . | . . . Kick 2 | . 2 . Crush . | . . . Escape Stasis . | . . . Rewire . | . . . Trap . | . . . Miscellaneous . | . . . Route ------- -11/Scrapyard -10/Materials (discovered 6 exits: [*Mat x3] / [*Min x2] / [*Sub]) -10/Subcaves History --------- Turn | Location | Event 2 | -11/Scrapyard | Met Revision 17 36 | -11/Scrapyard | Discovered new exit (range 14) 98 | -11/Scrapyard | Entered Materials 178 | -10/Materials | Discovered new exit (range 15) 243 | -10/Materials | Core integrity fell below 50% 278 | -10/Materials | Lost 4 parts (1p2n1w) 320 | -10/Materials | Build established: Mutant 414 | -10/Materials | Discovered new exit (range 7) 443 | -10/Materials | Discovered new exit (range 8) 522 | -10/Materials | Repaired Med. Laser 1099 | -10/Materials | Discovered new exit (range 8) 1914 | -10/Materials | Discovered new exit (range 7) 1914 | -10/Materials | Discovered new exit (range 5) 1957 | -10/Materials | Core integrity fell below 20% 2195 | -10/Materials | Entered Subcaves 2302 | -10/Subcaves | Disturbed a concealed Subdweller 2478 | -10/Subcaves | Destroyed by K3-XCC(R) with Subdweller Laser Last Messages --------------- 02289_ Acquired 10 matter. 02296_ Searching scrap... 02296_ Found Mak. System Shield. 02296_ Found Sub. Machine Gun. 02296_ Found 36 Matter. 02298_ Searching scrap... 02298_ Found Barrage Gun. 02298_ Found Sub. Power Source. 02298_ Found 35 Matter. 02302_ 01-VUR(R) angrily emerges from the Twisted Machinery. 02316_ Acquired 10 matter. 02325_ Sub. Monowheel melted. 02325_ 01-VUR(R) destroyed. 02328_ Subatomizers dissect the Sub. Machine Gun. 02364_ Subatomizers dissect the Barrage Gun. 02477_ Jacked K3-XCC(R)... >>parse_system Reading system data... Map ----- +----------------------------------------------------+ | %#???????????????????????????????????????????????? | | ##???????????????????????????????????????????????? | | ##???????????????????????????????????????????????? | | #???????????????????????????????????????????????? | | ##??????????????????????????????????????????????? | | ##?????????????????????????????????????????????? | | #####?????????????????????????????????????????? | | # #?????????????????????????????????????????? | | # #?????????????????????????????????????????? | | ## ####?????????????????????????????????????????? | | ####????????????????????????????????????????????? | | ##?????###????????????????????#####??#????????? | | #?????# #???????????######??# #? ????????? | | ##????## ##?????????## ### # ????????? | | #####?## # ########### ?????????? | | ### ### ### # # ## ?????????? | | ##?## #????????????? | | #??# #?????????????? | | ### # # #?## ### ### ##????????????? | | #?#########??####?###?## #????#???????? | | #????????????????####?### ###?? #???????? | | #?????????????### ###?## ##?# ##??????? | | #??????????## ### # ## #??????? | | #?????????## #??????? | | ###??????#### #??????? | | #???????# ## @R ## #?????? | | ### ### ##### ##??# ?????? | | #?### #?#####???## ##??? ??????? | | ???# #?????????# #???? ??????? | | ?# ?????????# #??? ??????? | | ## !%????????# ## ##???? ???????? | | ? ## ### =??????? #? #??????????????? | | ???? ??## ?????? ###?? #??????????????? | | ???% % ????# ?????= ##????? ??????????????? | | ??? ??????# ???? #???????? ?????????????? | | ???? % ????????##??### #????????? ????????????? | | ????## ??????????????##??????????? ???????????? | | ?????? ?????????????????????????????? ??????????? | | ?????????????????????????????????????????????????? | | ?????????????????????????????????????????????????? | | ?????????????????????????????????????????????????? | | ?????????????????????????????????????????????????? | | ?????????????????????????????????????????????????? | | ?????????????????????????????????????????????????? | | ?????????????????????????????????????????????????? | | ?????????????????????????????????????????????????? | | ?????????????????????????????????????????????????? | | ?????????????????????????????????????????????????? | | ?????????????????????????????????????????????????? | | ?????????????????????????????????????????????????? | +----------------------------------------------------+ Best States ------------- Heat Dissipation 35 Energy Generation 10 Energy Capacity 250 Matter Stores 300 Matter Capacity 300 Sight Range 16 Terrain Scan Density 10 Armor Coverage 150 Evasion (%) 55 Item Schematics ----------------- None Robot Schematics ------------------ None Fabricated ------------ Nothing Alien Tech Used ----------------- None Achievements -------------- None Challenges ------------ None Game ------ Seed StasisNavigationGun Manual? 0 Play Time 00:24:31 Cumulative 22.7 hours Start 2025.03.17 @ 20:37:20 End 2025.03.17 @ 22:14:29 Sessions 4 Manual Loads 0 Difficulty Rogue Special Mode None Game No. 15 Rogue 15 Adventurer 0 Explorer 0 Win Type - Total 0 Types 0/0/0/0/0/0/0/0/0 Lore% 7 Gallery% 13 Achievement% 16 Wizard Run 0 Options --------- Layout 1 ASCII 0 Keyboard 1 Movement Numpad Keybinds 0 Fullscreen 2 Font 24/Cog Map View 50x35 Zoom Use 0% Tactical HUD 1 Map Filters NONE Filters NONE Steam 1 RUN: 6ad31413-dd7e-4d6b-9629-a559d45f3aa8